Cogmind - Beta 13 @@@ ROGUE MODE // 2024.03.15 @ 07:48:02 Player: puppuppit Result: Destroyed by G-47 Trooper with Particle Gun Performance ------------- Evolutions (2) 1000 Regions Visited (5) 1000 Robots Destroyed (80) 400 Value Destroyed (1804) 1804 Prototype IDs (21) 420 Alien Tech Used (0) 0 Bonus (504) 504 TOTAL SCORE: 5128 Bonus ------- High Alert Combat Kills 345 Entered Garrisons 200 Friendly Fire -41 Cogmind --------- Core Integrity 0/550 Matter 85/300 Energy 45/100 System Corruption 0% Temperature Cool (9) Movement Core (200) Ox3 Location -8/Garrison Parts ------- > --- POWER (1) -------- (None) > --- PROPULSION (4) --- (None) > --- UTILITY (4) ------ Improved Signal Interpreter Improved Terrain Scanner Improved Terrain Scan Processor > --- WEAPON (2) ------- Heavy Plasma Cannon > --- INVENTORY (5) ---- Subdweller Optics Rocket Launcher Peak State ------------ > --- POWER ------------ Makeshift Power Source > --- PROPULSION ------- Aerolev Unit Flight Unit Cesium-ion Thruster Cesium-ion Thruster > --- UTILITY ---------- Cryofiber Web Improved Signal Interpreter Improved Terrain Scanner Improved Terrain Scan Processor > --- WEAPON ----------- Enhanced Autogun Mini Grenade Launcher > --- INVENTORY -------- Compact Matter Pod Subdweller Optics Matter Filter Powered Cannon [Rating: 35] Favorites ----------- Power Makeshift Power Source Engine Makeshift Power Source Propulsion Flight Unit Leg Makeshift Leg Wheel Wheel Hover Unit Aerolev Unit Flight Unit Flight Unit Utility Improved Terrain Scanner Device Improved Terrain Scanner Storage Small Storage Unit Processor Terrain Scan Processor Protection Improved Light Armor Plating Weapon Light Cannon Energy Gun EM Pulse Gun Energy Cannon Heavy Plasma Cannon Ballistic Gun Makeshift Shrapnel Gun Ballistic Cannon Light Cannon Launcher Rocket Launcher Build | -11 -10 -10 -10 -8 -8 ------- Run | Yrd Mat Min Sub Mat Gar Slots Evolved 4 | . . . . 4 . Power . | . . . . . . Propulsion 2 | . . . . 2 . Utility 2 | . . . . 2 . Weapon . | . . . . . . Parts Attached 65 | 8 9 5 10 21 12 Power 5 | 1 1 . 2 1 . Engine 5 | 1 1 . 2 1 . Core . | . . . . . . Reactor . | . . . . . . Propulsion 19 | 3 3 4 3 6 . Treads . | . . . . . . Leg 1 | . . . 1 . . Wheel 4 | 3 1 . . . . Hover 3 | . . . . 3 . Flight 11 | . 2 4 2 3 . Utility 13 | 2 2 1 1 6 1 Device 6 | 1 . . 1 3 1 Storage 1 | 1 . . . . . Processor 5 | . 2 1 . 2 . Hackware . | . . . . . . Protection 1 | . . . . 1 . Artifact . | . . . . . . Weapon 28 | 2 3 . 4 8 11 Energy Gun 5 | 2 . . 1 2 . Energy Cannon 6 | . . . . 1 5 Ballistic Gun 4 | . . . 1 1 2 Ballistic Cannon 3 | . 2 . 1 . . Launcher 10 | . 1 . 1 4 4 Special Weapon . | . . . . . . Impact Weapon . | . . . . . . Slashing Weapon . | . . . . . . Piercing Weapon . | . . . . . . Special Melee Weapon . | . . . . . . Unidentified Prototypes 3 | . . . . 3 . Corrupted Parts 2 | 1 1 . . . . System Corruption 3 | 2 1 . . . . Parts Lost 19 | . 2 . 5 6 6 Power 2 | . 1 . . . 1 Propulsion 9 | . . . 3 4 2 Utility 1 | . . . . 1 . Weapon 7 | . 1 . 2 1 3 Highest Loss Streak 8 | . 2 . 4 3 8 To Critical Strikes . | . . . . . . Average Slot Usage (%) 83 | . 97 85 87 74 36 Engine 5 | . 11 . 6 8 3 Leg 1 | . . . 6 . . Wheel 2 | . 12 . . . . Hover 1 | . . . . 8 2 Flight 19 | . 14 28 20 18 1 Device 12 | . 14 14 13 8 1 Processor 14 | . 10 14 14 16 17 Energy Gun 1 | . 6 . . 2 . Ballistic Gun 2 | . . . 5 4 4 Ballistic Cannon 16 | . 21 28 14 . . Launcher 3 | . . . 5 7 1 Naked Turns . | . . . . . . Heaviest Build 14 | 13 14 8 14 13 13 Greatest Support 26 | 26 20 8 20 21 7 Greatest Overweight (x) 3 | . 2 . . 1 3 Average Overweight (x) . | . . . . . . Largest Inventory Capacity 8 | 8 8 5 5 5 5 Average Capacity 5 | 7 5 5 5 5 5 Most Carried 6 | 3 6 5 5 5 5 Average Carried 4 | . 4 4 4 4 3 Final Capacity 8 | 8 5 5 5 5 5 Final Carried 5 | 3 5 4 5 5 2 Class Distribution -------------------- 44% | Mutant 38% | Scavenger-Mutant 11% | Derelict-Mutant 5% | Sprinter Dominant Class ---------------- Scavenger-Mutant | -10/Materials Scavenger-Mutant | -10/Mines Mutant | -10/Subcaves Mutant | -8/Materials Mutant | -8/Garrison Resources | -11 -10 -10 -10 -8 -8 ----------- Run | Yrd Mat Min Sub Mat Gar Matter Collected 1998 | 368 583 201 150 480 216 Remotely . | . . . . . . Salvage Created 2082 | 247 478 466 63 525 303 Parts 141 | 22 48 28 6 27 10 Haulers Intercepted 3 | . 2 . . 1 . Recyclers Shooed 5 | 2 1 2 . . . Parts Field Recycled . | . . . . . . Retrieved Matter . | . . . . . . Parts Self-Destructed 5 | . . . 5 . . Prevented . | . . . . . . Kills | -11 -10 -10 -10 -8 -8 ------- Run | Yrd Mat Min Sub Mat Gar Combat Hostiles Destroyed 38 | . 8 3 4 17 6 Guns 2 | . . . . 1 1 Cannons 13 | . 4 3 2 . 4 AOE 23 | . 4 . 2 16 1 Classes Destroyed 15 | 3 6 . 1 5 . Worker 13 | 2 6 1 . 4 . Builder 2 | . 2 . . . . Tunneler 9 | 5 2 1 . 1 . Hauler 3 | . 2 . . 1 . Recycler 11 | 1 2 7 . 1 . Mechanic 1 | . 1 . . . . Operator 1 | . . . . 1 . Watcher 2 | . 2 . . . . Swarmer 13 | . 6 3 . 4 . Grunt 13 | . 2 . . 7 4 Duelist 2 | . . . . 2 . Protector 1 | . . . . 1 . Sentry 4 | . . . . 2 2 Hunter 1 | . . . . 1 . Subdweller 4 | . . . 4 . . Best Kill Streak 10 | 4 7 2 2 10 4 Combat Bots Only 8 | . 4 2 2 8 4 Max Kills in Single Turn 3 | 1 3 2 1 3 1 Gunslinging . | . . . . . . Exploded 3 | . 3 . 1 2 1 Melee . | . . . . . . Uniques/NPCs Destroyed . | . . . . . . Combat | -11 -10 -10 -10 -8 -8 -------- Run | Yrd Mat Min Sub Mat Gar Hostile Shots Fired 264 | . 37 13 27 85 102 Missed 86 | . 11 4 9 36 26 Damage Taken 2397 | . 239 67 508 875 708 Core 735 | . 24 18 136 276 281 Absorbed by Shields . | . . . . . . Regen/Repaired (Parts) 53 | . 19 . . 34 . Core Remaining (%) 64 | 100 . . 28 . . Volleys Fired 181 | 16 56 20 26 32 31 Largest 2 | 2 2 2 2 2 2 Hottest 113 | 80 80 70 95 90 113 Shots Fired 305 | 30 109 41 36 54 35 Gun 107 | 30 28 . 4 24 21 Cannon 150 | . 79 41 18 . 12 Launcher 48 | . 2 . 14 30 2 Special . | . . . . . . Kinetic 177 | . 79 41 20 16 21 Thermal 22 | . . . 2 8 12 Explosive 48 | . 2 . 14 30 2 Electromagnetic 58 | 30 28 . . . . Robot Hit Streak 9 | 8 8 4 9 5 7 Robot Miss Streak 5 | 1 5 5 2 5 1 Penetration Max . | . . . . . . Secondary Targets . | . . . . . . Shots Hit Robots 156 | 20 51 17 16 27 25 Core Hits 111 | 8 28 12 5 49 9 Critical Kills . | . . . . . . Critical Parts Destroyed . | . . . . . . Critical Strikes 3 | . 1 . 2 . . Blast 3 | . 1 . 2 . . Melee Attacks . | . . . . . . Impact . | . . . . . . Slashing . | . . . . . . Piercing . | . . . . . . Sneak Attacks . | . . . . . . Combat Hostiles . | . . . . . . Follow-up Attacks . | . . . . . . Damage Inflicted 5531 | 275 1504 317 448 2202 785 Guns 882 | 275 160 . 21 218 208 Cannons 1609 | . 734 317 126 . 432 Explosions 3037 | . 610 . 301 1984 142 Melee . | . . . . . . Ramming 3 | . . . . . 3 Kinetic 1561 | . 734 317 147 155 208 Thermal 1019 | . 524 . . 63 432 Explosive 2513 | . 86 . 301 1984 142 Electromagnetic 435 | 275 160 . . . . Impact . | . . . . . . Slashing . | . . . . . . Piercing . | . . . . . . Highest Corruption 3 | 2 3 3 3 . . Average Corruption 2 | 2 2 3 3 . . Corruption Purged . | . . . . . . Corruption Blocked . | . . . . . . Effects 38 | 1 5 16 16 . . Message Errors 9 | . . 5 4 . . Matter Fused 7 | . 2 . 5 . . Heat Flow Errors 5 | . 2 1 2 . . Energy Discharges 6 | 1 . 4 1 . . Parts Fused 1 | . . . 1 . . Data Loss (minor) 6 | . . 3 3 . . Data Loss (major) 1 | . . 1 . . . Misfires 1 | . . 1 . . . Alerts 1 | . . 1 . . . Weapon Failures 1 | . 1 . . . . Overload Shots . | . . . . . . Overflow Damage 73 | . 44 . 1 28 . Projectiles 8 | . 8 . . . . Explosions 65 | . 36 . 1 28 . Melee . | . . . . . . Knockbacks 9 | . 6 1 2 . . Impact . | . . . . . . Kinetic 9 | . 6 1 2 . . Secondary . | . . . . . . Self-Inflicted Damage 201 | . . . 30 137 34 Shots 8 | . . . 1 5 2 Rammed 3 | . . . . . 3 Targets Rammed 3 | . . . . . 3 Kicked . | . . . . . . Crushed . | . . . . . . Highest Temperature 279 | 108 257 248 168 279 56 Average Temperature 58 | 37 65 31 92 78 25 Received Heat Transfer 732 | . 87 . 87 324 234 Effects 3 | . . . . 3 . Interference 3 | . . . . 3 . Siege Activations . | . . . . . . Robots Corrupted 1 | 1 . . . . . Combat Hostiles . | . . . . . . Parts Fried 2 | 2 . . . . . Impact Corruptions . | . . . . . . Robots Melted . | . . . . . . Combat Hostiles . | . . . . . . Parts Melted . | . . . . . . Heat Transferred 525 | . 350 . . 75 100 Parts Sabotaged . | . . . . . . Parts Stolen . | . . . . . . Parts Stripped . | . . . . . . Power Chain Reactions 1 | . 1 . . . . Alert | -11 -10 -10 -10 -8 -8 ------- Run | Yrd Mat Min Sub Mat Gar Peak Influence 1024 | 40 321 133 . 1024 842 Initial 665 | . 26 33 . . 665 Average 213 | 15 158 52 . 402 754 Maximum Alert Level 3 | . 1 . . 3 3 Low Security (%) 64 | 100 48 100 . 37 . Level 1 17 | . 51 . . 19 . Level 2 5 | . . . . 17 16 Level 3 12 | . . . . 25 83 Level 4 . | . . . . . . Level 5 . | . . . . . . High Security . | . . . . . . Max Security . | . . . . . . Squads Dispatched 8 | . 1 . . 7 . Investigation 5 | . . . . 5 . Extermination . | . . . . . . Reinforcement 1 | . 1 . . . . Assault 1 | . . . . 1 . Garrison 1 | . . . . 1 . Intercept . | . . . . . . Searches Triggered . | . . . . . . Construction Impeded . | . . . . . . Haulers Reinforced . | . . . . . . Active Scanning Responses . | . . . . . . Cargo Convoy Interrupts . | . . . . . . Stealth | -11 -10 -10 -10 -8 -8 --------- Run | Yrd Mat Min Sub Mat Gar Distress Signals 2 | . . . . 2 . Communications Jammed . | . . . . . . Distress Signals . | . . . . . . Times Spotted 86 | . 15 5 7 47 12 Peak Tracking Total 12 | . 6 3 2 12 6 Tactical Retreats 11 | . 1 1 1 7 1 Traps | -11 -10 -10 -10 -8 -8 ------- Run | Yrd Mat Min Sub Mat Gar Traps Triggered 3 | . . . 1 1 1 Indirectly . | . . . . . . Trap Hack Attempts . | . . . . . . Triggered . | . . . . . . Disarmed . | . . . . . . Reprogrammed . | . . . . . . Reused . | . . . . . . Traps Extracted . | . . . . . . Installed . | . . . . . . Triggered . | . . . . . . Machines | -11 -10 -10 -10 -8 -8 ---------- Run | Yrd Mat Min Sub Mat Gar Machines Disabled 20 | . 5 1 4 8 2 Max in Single Turn 4 | . 4 1 2 2 1 Garrison Relay 1 | . . . . . 1 Machines Repaired . | . . . . . . Machines Dismantled . | . . . . . . Machines Sabotaged . | . . . . . . Overloaded Fab Kills . | . . . . . . Hacking | -11 -10 -10 -10 -8 -8 --------- Run | Yrd Mat Min Sub Mat Gar Machines Accessed 20 | . 8 . 1 11 . Terminals 14 | . 5 . . 9 . Fabricators . | . . . . . . Repair Stations 2 | . 1 . . 1 . Recycling Units 2 | . 2 . . . . Scanalyzers . | . . . . . . Garrison Access 1 | . . . . 1 . Total Hacks 67 | . 23 . 9 35 . Successful 31 | . 11 . 9 11 . Failed 34 | . 11 . . 23 . Catastrophic 9 | . 1 . . 8 . Database Lockouts 2 | . 1 . . 1 . Manual 26 | . 5 . . 21 . Terminals 48 | . 17 . . 31 . Fabricators . | . . . . . . Repair Stations 7 | . 4 . . 3 . Recycling Units 2 | . 2 . . . . Scanalyzers . | . . . . . . Garrison Access 1 | . . . . 1 . Terminal Hacks 23 | . 6 . 9 8 . Record 8 | . . . 8 . . Robot Analysis 5 | . 2 . . 3 . Prototype ID Bank 5 | . 3 . . 2 . Terminal Index 1 | . . . . 1 . Unreport Threat 1 | . 1 . . . . Recall Investigation 1 | . . . . 1 . Registered Components 1 | . . . . 1 . Derelict Proto ID Bank 1 | . . . 1 . . Fabricator Hacks . | . . . . . . Repair Station Hacks 5 | . 3 . . 2 . Scan Component 2 | . 1 . . 1 . Repair 2 | . 1 . . 1 . Refit 1 | . 1 . . . . Recycling Unit Hacks 2 | . 2 . . . . Retrieve Components 2 | . 2 . . . . Scanalyzer . | . . . . . . Garrison Access Hacks 1 | . . . . 1 . Unlock Access 1 | . . . . 1 . Unauthorized Hacks . | . . . . . . Terminals . | . . . . . . Fabricators . | . . . . . . Repair Stations . | . . . . . . Recycling Units . | . . . . . . Scanalyzers . | . . . . . . Garrison Access . | . . . . . . Data Cores Recovered . | . . . . . . Used . | . . . . . . Hacking Detections 16 | . 5 . . 11 . Full Trace Events 6 | . . . . 6 . Feedback Events . | . . . . . . Feedback Blocked . | . . . . . . Robot Schematics Acquired . | . . . . . . Robots Built . | . . . . . . Authchips . | . . . . . . Time . | . . . . . . Total Robot Build Rating . | . . . . . . Part Schematics Acquired . | . . . . . . Parts Built . | . . . . . . Authchips . | . . . . . . Time . | . . . . . . Total Part Build Rating . | . . . . . . Parts Repaired 2 | . 1 . . 1 . Time 70 | . 26 . . 44 . Parts Recycled . | . . . . . . Recycled Matter . | . . . . . . Retrieved Matter . | . . . . . . Retrieved Components 4 | . 4 . . . . Parts Scanalyzed . | . . . . . . Part Schematics Acquired . | . . . . . . Parts Damaged . | . . . . . . Bothacking | -11 -10 -10 -10 -8 -8 ------------ Run | Yrd Mat Min Sub Mat Gar Used RIF Installer . | . . . . . . Robots Hacked . | . . . . . . Non-combat . | . . . . . . Combat . | . . . . . . Robot Hacks Applied . | . . . . . . Relay Couplers Released 5 | . . . . . 5 Machine Destruction 5 | . . . . . 5 Fabnet Peak Effective % . | . . . . . . Robots Rewired . | . . . . . . Allies Hacked . | . . . . . . Hacks Repelled . | . . . . . . Allies | -11 -10 -10 -10 -8 -8 -------- Run | Yrd Mat Min Sub Mat Gar Total Allies 1 | . . 1 . . . Largest Group 1 | . . 1 . . . Highest-Rated Group 31 | . . 31 . . . Highest-Rated Ally 31 | . . 31 . . . Total Orders . | . . . . . . Ally Attacks . | . . . . . . Total Damage . | . . . . . . Kills . | . . . . . . Allies Corrupted . | . . . . . . Allies Melted . | . . . . . . Intel | -11 -10 -10 -10 -8 -8 ------- Run | Yrd Mat Min Sub Mat Gar Robot Analysis Total 5 | . 2 . . 3 . Derelict Logs Recovered 2 | . . 1 1 . . Drone Launches . | . . . . . . Drone Recoveries . | . . . . . . Exploration | -11 -10 -10 -10 -8 -8 ------------- Run | Yrd Mat Min Sub Mat Gar Turns Passed 2605 | 123 497 692 699 452 142 Spaces Moved 3148 | 76 498 908 899 701 66 Core 50 | 3 . . . . 47 Treads . | . . . . . . Legs 198 | . . . 198 . . Wheels 233 | 73 160 . . . . Hover 169 | . . . . 155 14 Flight 2498 | . 338 908 701 546 5 Fastest Speed 30 | 50 37 37 37 30 35 Average Speed 47 | 81 51 37 60 37 69 Slowest Speed 200 | 90 200 37 140 120 200 Overloaded Moves . | . . . . . . Propulsion Burnouts . | . . . . . . Robots Hopped 7 | . . 2 . 5 . Cave-ins Triggered . | . . . . . . Exploration Rate (%) 49 | 4 69 99 47 64 11 Regions Visited 5 Branch Regions 2 Pre-discovered Areas 2 | . . . 2 . . Known Exits Taken 3 | . . 1 1 1 . Unknown Exits Taken 2 | 1 1 . . . . Scrap Searched 2 | . . 2 . . . Spaces Dug 15 | . . . . 15 . Terrain Destroyed 346 | . 14 . 72 244 16 Melee . | . . . . . . Projectile 2 | . . . 1 . 1 AOE 344 | . 14 . 71 244 15 Terrain Rammed . | . . . . . . Walls Destroyed . | . . . . . . Machines Disabled . | . . . . . . Actions | -11 -10 -10 -10 -8 -8 --------- Run | Yrd Mat Min Sub Mat Gar Total 3937 | 103 630 1224 1017 835 128 Wait 482 | . 45 285 75 69 8 Move 3131 | 75 497 903 898 692 66 Hop 6 | . . 2 . 4 . Pick Up 24 | 3 12 3 2 3 1 Fast Attach 34 | 7 3 . 6 15 3 Attach 19 | . 3 . 2 5 9 Detach 15 | . 1 . 2 6 6 Swap 12 | 1 3 5 2 1 . Drop 30 | 1 10 6 4 8 1 Fire 181 | 16 56 20 26 32 31 Melee . | . . . . . . Ram 3 | . . . . . 3 Kick . | . . . . . . Crush . | . . . . . . Escape Stasis . | . . . . . . Rewire . | . . . . . . Trap . | . . . . . . Miscellaneous . | . . . . . . Route ------- -11/Scrapyard -10/Materials (discovered 2 exits: [*Mat] / [*Min]) -10/Mines (discovered 3 exits: [*Mat x2] / *Sub) -10/Subcaves -8/Materials -8/Garrison History --------- Turn | Location | Event 16 | -11/Scrapyard | Discovered new exit (range 15) 124 | -11/Scrapyard | Entered Materials 287 | -10/Materials | Central database locked down 384 | -10/Materials | Discovered new exit (range 5) 472 | -10/Materials | Repaired Lrg. Matter Pod 490 | -10/Materials | Discovered new exit (range 16) 534 | -10/Materials | Build established: Scavenger-Mutant 621 | -10/Materials | Entered Mines 628 | -10/Mines | Received a Rocket Launcher from a helpful Derelict 630 | -10/Mines | Met a Derelict bent on vengeance 633 | -10/Mines | Discovered new exit (range 8) 733 | -10/Mines | Learned Materials garrison access intel 1027 | -10/Mines | Discovered new exit (range 6) 1029 | -10/Mines | Received a Mining Laser from a helpful Derelict 1180 | -10/Mines | Discovered new exit (range 3) 1283 | -10/Mines | Identified exit to Subcaves 1313 | -10/Mines | Entered Subcaves 1313 | -10/Subcaves | Learned location of Zion (-7) 1358 | -10/Subcaves | Visited 4L-MR0's lab 1374 | -10/Subcaves | Found Powered Cannon 1475 | -10/Subcaves | A swath of the cavern ceiling suddenly collapsed 1525 | -10/Subcaves | Met a Zionite searching for "candidates" 1527 | -10/Subcaves | Build established: Mutant 1672 | -10/Subcaves | Lost 4 parts (3n1w) 1928 | -10/Subcaves | Discovered new exit (range 7) 1937 | -10/Subcaves | Identified exit to Materials 1993 | -10/Subcaves | Core integrity fell below 50% 2012 | -10/Subcaves | Entered Materials 2012 | -8/Materials | Evolved 4 slots: Propulsion x2, Utility x2 2013 | -8/Materials | Loaded intel: 1 garrison access location 2065 | -8/Materials | Repaired Mak. Power Source 2224 | -8/Materials | Central database locked down 2412 | -8/Materials | First assault squad dispatched 2455 | -8/Materials | Core integrity fell below 50% 2455 | -8/Materials | Garrison activated, responded to threat 2464 | -8/Materials | Identified exit to Garrison 2464 | -8/Materials | Entered Garrison 2466 | -8/Garrison | Triggered checkpoint 2478 | -8/Garrison | Destroyed 8 combat bots 2482 | -8/Garrison | Attached Powered Cannon, gained temporary slot: Power 2499 | -8/Garrison | Spotted B-75 Beast 2546 | -8/Garrison | Triggered checkpoint 2551 | -8/Garrison | Garrison Relay disabled 2571 | -8/Garrison | Lost 8 parts (1p4n3w) 2597 | -8/Garrison | Core integrity fell below 20% 2606 | -8/Garrison | Destroyed by G-47 Trooper with Particle Gun Last Messages --------------- 02540_ Destroyed Mni. Grenade Launcher. 02546_ Beams of light sweep through the air. An alarm sounds. 02551_ Garrison Relay disabled. 02551_ Relay Coupler [NC] tumbles out of relay unit. 02551_ Relay Coupler [Hunter] tumbles out of relay unit. 02551_ Relay Coupler [Swarmer] tumbles out of relay unit. 02551_ Relay Coupler [Sentry] tumbles out of relay unit. 02551_ Relay Coupler [Grunt] tumbles out of relay unit. 02565_ Acquired Hvy. Plasma Cannon. 02570_ RIF Installer disabled. 02575_ Acquired Hvy. Plasma Cannon. 02581_ Destroyed Melee Analysis Suite. 02593_ Hvy. Assault Rifle destroyed. 02598_ Hvy. Plasma Cannon severed. 02601_ Slammed into L-31 Rogue. 02601_ Destabilizing: Core damaged (-5). 02603_ Slammed into Y-45 Defender. 02603_ Imp. Terrain Scanner broken. 02603_ Destabilizing: Short circuit. 02605_ Slammed into G-47 Trooper. Map ----- +----------------------------------------------------+ | ????????????????# #?????????????????????????????? | | ????????????????# #?????????????????????????????? | | ????????????????# #?????????????????????????????? | | ????????????????# #?????????????????????????????? | | ????????????????# #?###?????????????????????????? | | ????????????????# # ??????????????????????????? | | ??????????????### #????????????????????????????? | | ?????????????# ^ #????????????????????????????? | | ???????????## ! =*#???????#####?????????????????? | | ???????????#= = %[[######### ##????????????????? | | ???????????#!# % #????????????????? | | ???????????# #????????????????? | | ???????????# ### #????????????????? | | ???????????# #??#""######### ##????????????????? | | ???????????# #### #???????#####?????????????????? | | ???????????# # #?????????????????????????????? | | ???????????# # ?????????????????????????????? | | ???????????# ##++#?????????????????????????????? | | ???????????# #### #?????????????????????????????? | | ???????????# #??? #?????????????????????????????? | | ???????????# #???#"#?????????????????????????????? | | ???????????# #????# ?????????????????????????????? | | ?????????### #???##"#????????????????????????????? | | ?????????#"# #???#!!#########????????????????????? | | ?????????#"! ##### !##^""""#????????????????????? | | ?????????#!!! ^g@Yl#????????????????????? | | ?????????#"! ##### !## """"#????????????????????? | | ?????????#"###???# #########????????????????????? | | ?????????##??????####????????????????????????????? | | ?????????????????????????????????????????????????? | | ?????????????????????????????????????????????????? | | ?????????????????????????????????????????????????? | | ?????????????????????????????????????????????????? | | ?????????????????????????????????????????????????? | | ?????????????????????????????????????????????????? | | ?????????????????????????????????????????????????? | | ?????????????????????????????????????????????????? | | ?????????????????????????????????????????????????? | | ?????????????????????????????????????????????????? | | ?????????????????????????????????????????????????? | | ?????????????????????????????????????????????????? | | ?????????????????????????????????????????????????? | | ?????????????????????????????????????????????????? | | ?????????????????????????????????????????????????? | | | | | | | | | | | | | +----------------------------------------------------+ Best States ------------- Heat Dissipation 31 Energy Generation 15 Energy Capacity 170 Matter Stores 300 Matter Capacity 300 Sight Range 16 Robot Scan Range 19 Terrain Scan Range 16 Terrain Scan Density 110 Base Temperature (-) 100 Armor Coverage 150 Evasion (%) 64 Matter Filtering 30 Item Schematics ----------------- None Robot Schematics ------------------ None Fabricated ------------ Nothing Alien Tech Used ----------------- None Achievements -------------- None Challenges ------------ None Game ------ Seed ProjectionLinearPropulsion Manual? 0 Play Time 00:47:02 Cumulative 151.1 hours Start 2024.03.15 @ 07:01:16 End 2024.03.15 @ 07:48:02 Sessions 1 Manual Loads 0 Difficulty Rogue Special Mode None Game No. 82 Rogue 82 Adventurer 0 Explorer 0 Win Type - Total 0 Types 0/0/0/0/0/0/0/0/0 Lore% 58 Gallery% 63 Achievement% 53 Wizard Run 0 Options --------- Layout 0 ASCII 0 Keyboard 1 Movement Arrows Keybinds 0 Fullscreen 1 Font 12/Proggy Map View 83x54 Zoom Use 0% Tactical HUD 1 Map Filters NONE Filters NONE Steam 0 RUN: af72e428-a289-4a98-beb0-c5fe4c0466b1